[Event "*** Titled Tuesday Blitz"]
[Site "Chess.com"]
[Date "2019.08.06"]
[Round "2"]
[White "saraswathii"]
[Black "ZZWW18"]
[Result "1-0"]
[WhiteElo "2336"]
[BlackElo "2445"]
[TimeControl "180+2"]
[EndTime "13:24:58 PDT"]
[Termination "saraswathii won by resignation"]

1. d4 {[%clk 0:02:56.6]} 1... Nf6 {[%clk 0:03:00.2]} 2. Bf4 {[%clk 0:02:54.1]}
2... d5 {[%clk 0:02:58.8]} 3. e3 {[%clk 0:02:53.1]} 3... c6 {[%clk 0:02:58]} 4.
c4 {[%clk 0:02:50]} 4... Qb6 {[%clk 0:02:47.1]} 5. Qb3 {[%clk 0:02:47.6]} 5...
dxc4 {[%clk 0:02:36.7]} 6. Bxc4 {[%clk 0:02:44.8]} 6... Qxb3 {[%clk 0:02:36.7]}
7. axb3 {[%clk 0:02:43.4]} 7... a6 {[%clk 0:02:34.9]} 8. Nf3 {[%clk 0:02:28.2]}
8... Bf5 {[%clk 0:02:34.3]} 9. Nc3 {[%clk 0:02:20.6]} 9... e6 {[%clk 0:02:24.9]}
10. O-O {[%clk 0:02:19]} 10... Nbd7 {[%clk 0:02:21.8]} 11. Rfe1 {[%clk
0:02:15.6]} 11... Bb4 {[%clk 0:02:03.4]} 12. Nd2 {[%clk 0:02:07.1]} 12... Nh5
{[%clk 0:01:53.4]} 13. Bg3 {[%clk 0:02:02.2]} 13... Nxg3 {[%clk 0:01:45]} 14.
hxg3 {[%clk 0:02:01.2]} 14... O-O-O {[%clk 0:01:41.6]} 15. e4 {[%clk 0:01:58.8]}
15... Bg6 {[%clk 0:01:41.6]} 16. Nf3 {[%clk 0:01:46.9]} 16... Nf6 {[%clk
0:01:39.6]} 17. Bd3 {[%clk 0:01:38.7]} 17... c5 {[%clk 0:01:35.8]} 18. Rec1
{[%clk 0:01:32.7]} 18... Kb8 {[%clk 0:01:20.1]} 19. Ra4 {[%clk 0:01:27]} 19...
Bxc3 {[%clk 0:01:05.4]} 20. Rxc3 {[%clk 0:01:08.1]} 20... cxd4 {[%clk
0:01:00.3]} 21. Nxd4 {[%clk 0:01:07]} 21... Nxe4 {[%clk 0:00:53.2]} 22. Bxe4
{[%clk 0:01:07.2]} 22... Bxe4 {[%clk 0:00:53.5]} 23. Nxe6 {[%clk 0:00:41]} 23...
Rd1+ {[%clk 0:00:39]} 24. Kh2 {[%clk 0:00:40.9]} 24... Bc6 {[%clk 0:00:39.3]}
25. Rd4 {[%clk 0:00:32.7]} 25... Rxd4 {[%clk 0:00:33.3]} 26. Nxd4 {[%clk
0:00:32.9]} 26... Bd5 {[%clk 0:00:34.8]} 27. Nf5 {[%clk 0:00:33.7]} 27... g6
{[%clk 0:00:32.6]} 28. Ne3 {[%clk 0:00:34.5]} 28... Be6 {[%clk 0:00:33.2]} 29.
b4 {[%clk 0:00:35.8]} 29... Rd8 {[%clk 0:00:32.1]} 30. Rc2 {[%clk 0:00:35.2]}
30... Rd4 {[%clk 0:00:29.5]} 31. b5 {[%clk 0:00:29.6]} 31... axb5 {[%clk
0:00:30.1]} 32. Re2 {[%clk 0:00:29.1]} 32... Kc7 {[%clk 0:00:29.5]} 33. Nc2
{[%clk 0:00:29.3]} 33... Rd6 {[%clk 0:00:28.7]} 34. Na3 {[%clk 0:00:29.4]} 34...
b4 {[%clk 0:00:28.3]} 35. Nb5+ {[%clk 0:00:30]} 35... Kc6 {[%clk 0:00:27]} 36.
Nxd6 {[%clk 0:00:31]} 36... Kxd6 {[%clk 0:00:28.9]} 37. Rc2 {[%clk 0:00:26.1]}
37... b3 {[%clk 0:00:28.7]} 38. Rc3 {[%clk 0:00:25.2]} 38... b5 {[%clk
0:00:28.1]} 39. Kg1 {[%clk 0:00:24.8]} 39... h5 {[%clk 0:00:26.6]} 40. Kf1
{[%clk 0:00:24.1]} 40... Ke5 {[%clk 0:00:25.8]} 41. Ke2 {[%clk 0:00:20.9]} 41...
Bc4+ {[%clk 0:00:25.6]} 42. Ke3 {[%clk 0:00:21.5]} 42... Kd6 {[%clk 0:00:19.1]}
43. Kd4 {[%clk 0:00:19.9]} 43... Be6 {[%clk 0:00:19.2]} 44. Rc5 {[%clk
0:00:18.7]} 44... Bd7 {[%clk 0:00:14.9]} 45. Rd5+ {[%clk 0:00:19.3]} 45... Kc7
{[%clk 0:00:14.5]} 46. Kc5 {[%clk 0:00:17.5]} 46... Bc6 {[%clk 0:00:12.2]} 47.
Rd3 {[%clk 0:00:18.4]} 47... Bxg2 {[%clk 0:00:12.9]} 48. Rxb3 {[%clk 0:00:19.1]}
48... Bf1 {[%clk 0:00:12.7]} 49. Rf3 {[%clk 0:00:20.1]} 49... Bc4 {[%clk
0:00:13.2]} 50. b3 {[%clk 0:00:20.1]} 50... Be6 {[%clk 0:00:14]} 51. Kxb5 {[%clk
0:00:20.8]} 51... g5 {[%clk 0:00:15.4]} 52. Kc5 {[%clk 0:00:21.5]} 52... h4
{[%clk 0:00:16.3]} 53. gxh4 {[%clk 0:00:21.2]} 53... gxh4 {[%clk 0:00:18.2]} 54.
b4 {[%clk 0:00:19.2]} 54... h3 {[%clk 0:00:19.3]} 55. Rf6 {[%clk 0:00:20.3]}
55... Kd7 {[%clk 0:00:11.6]} 56. Rh6 {[%clk 0:00:20.5]} 56... Ke7 {[%clk
0:00:12]} 57. Kc6 {[%clk 0:00:18.9]} 57... Kf8 {[%clk 0:00:12.3]} 58. b5 {[%clk
0:00:18.7]} 58... Kg7 {[%clk 0:00:13.5]} 59. Rh4 {[%clk 0:00:19.5]} 59... Kg6
{[%clk 0:00:13.8]} 60. b6 {[%clk 0:00:20.2]} 60... Kg5 {[%clk 0:00:14.7]} 61.
Rh8 {[%clk 0:00:20.9]} 61... Bg4 {[%clk 0:00:11.8]} 62. b7 {[%clk 0:00:20.4]}
62... Bf3+ {[%clk 0:00:13]} 63. Kc7 {[%clk 0:00:21.2]} 63... Bxb7 {[%clk
0:00:14.9]} 64. Kxb7 {[%clk 0:00:23.1]} 64... f5 {[%clk 0:00:14.4]} 65. Rxh3
{[%clk 0:00:21.3]} 65... Kg4 {[%clk 0:00:14.1]} 66. Rc3 {[%clk 0:00:21.8]} 66...
f4 {[%clk 0:00:15.3]} 67. Kc6 {[%clk 0:00:23.3]} 1-0

[Event "*** Titled Tuesday Blitz"]
[Site "Chess.com"]
[Date "2019.08.06"]
[Round "2"]
[White "GMMarcinDziuba"]
[Black "SaraciNderim"]
[Result "1/2-1/2"]
[WhiteElo "2697"]
[BlackElo "2831"]
[TimeControl "180+2"]
[EndTime "13:25:00 PDT"]
[Termination "Game drawn - insufficient material"]

1. Nf3 {[%clk 0:03:01.9]} 1... Nf6 {[%clk 0:02:58.4]} 2. g3 {[%clk 0:03:02.8]}
2... b6 {[%clk 0:02:58.8]} 3. Bg2 {[%clk 0:03:04.4]} 3... Bb7 {[%clk 0:03:00.7]}
4. O-O {[%clk 0:03:05.8]} 4... g6 {[%clk 0:03:02.1]} 5. b3 {[%clk 0:03:06.5]}
5... Bg7 {[%clk 0:03:03.4]} 6. Bb2 {[%clk 0:03:08.2]} 6... O-O {[%clk
0:03:04.7]} 7. c4 {[%clk 0:03:09.3]} 7... d6 {[%clk 0:03:05.9]} 8. d4 {[%clk
0:03:10]} 8... c5 {[%clk 0:03:06.1]} 9. d5 {[%clk 0:03:06.9]} 9... Nbd7 {[%clk
0:03:03.8]} 10. Nc3 {[%clk 0:03:06.3]} 10... a6 {[%clk 0:03:05]} 11. a4 {[%clk
0:03:05.7]} 11... b5 {[%clk 0:03:05.5]} 12. axb5 {[%clk 0:03:03.6]} 12... axb5
{[%clk 0:03:07.4]} 13. Rxa8 {[%clk 0:03:04.4]} 13... Qxa8 {[%clk 0:03:02.3]} 14.
Nxb5 {[%clk 0:03:05.3]} 14... Ba6 {[%clk 0:03:03]} 15. Nc7 {[%clk 0:03:03]}
15... Qb7 {[%clk 0:03:04.1]} 16. Nxa6 {[%clk 0:03:04.1]} 16... Qxa6 {[%clk
0:03:06]} 17. Qc2 {[%clk 0:03:04.2]} 17... Rb8 {[%clk 0:02:58.4]} 18. Ra1 {[%clk
0:03:03.2]} 18... Qb6 {[%clk 0:02:58.3]} 19. Ra3 {[%clk 0:02:50.4]} 19... Qb4
{[%clk 0:02:48.3]} 20. Bh3 {[%clk 0:02:34.5]} 20... Nf8 {[%clk 0:02:38]} 21. Nd2
{[%clk 0:02:31.9]} 21... N6d7 {[%clk 0:02:11.9]} 22. Ra4 {[%clk 0:02:27.8]}
22... Qxa4 {[%clk 0:01:52.1]} 23. bxa4 {[%clk 0:02:28.2]} 23... Rxb2 {[%clk
0:01:53.6]} 24. Qd1 {[%clk 0:02:17.9]} 24... Ra2 {[%clk 0:01:54.1]} 25. Kg2
{[%clk 0:02:09.5]} 25... Nb6 {[%clk 0:01:50]} 26. Qb3 {[%clk 0:02:09.7]} 26...
Rb2 {[%clk 0:01:50.9]} 27. Qd1 {[%clk 0:01:45.9]} 27... Nxa4 {[%clk 0:01:38]}
28. Qxa4 {[%clk 0:01:42.7]} 28... Rxd2 {[%clk 0:01:38.6]} 29. e3 {[%clk
0:01:40]} 29... Bh6 {[%clk 0:01:32.6]} 30. Kg1 {[%clk 0:01:30.2]} 30... Bg5
{[%clk 0:01:31.9]} 31. Bc8 {[%clk 0:01:29.4]} 31... Kg7 {[%clk 0:01:28.9]} 32.
h4 {[%clk 0:01:30.3]} 32... Bf6 {[%clk 0:01:29.9]} 33. Kg2 {[%clk 0:01:30.7]}
33... h5 {[%clk 0:01:27.8]} 34. Qe8 {[%clk 0:01:03.8]} 34... Rb2 {[%clk
0:01:23.1]} 35. Ba6 {[%clk 0:01:02.4]} 35... Nh7 {[%clk 0:01:11.2]} 36. Bb5
{[%clk 0:00:58.8]} 36... g5 {[%clk 0:01:11.4]} 37. Qd7 {[%clk 0:00:50.4]} 37...
gxh4 {[%clk 0:01:12]} 38. Qf5 {[%clk 0:00:47.6]} 38... hxg3 {[%clk 0:01:12.7]}
39. Kxg3 {[%clk 0:00:49.5]} 39... h4+ {[%clk 0:01:02.1]} 40. Kg2 {[%clk
0:00:24.7]} 40... Ng5 {[%clk 0:00:53]} 41. Bd7 {[%clk 0:00:23.8]} 41... Ra2
{[%clk 0:00:48.2]} 42. Kg1 {[%clk 0:00:21.1]} 42... Ra1+ {[%clk 0:00:47.7]} 43.
Kh2 {[%clk 0:00:21]} 43... Ra2 {[%clk 0:00:42]} 44. Kg1 {[%clk 0:00:22]} 44...
h3 {[%clk 0:00:43.1]} 45. Qg4 {[%clk 0:00:19.7]} 45... h2+ {[%clk 0:00:40.9]}
46. Kxh2 {[%clk 0:00:19.4]} 46... Rxf2+ {[%clk 0:00:42.8]} 47. Kg1 {[%clk
0:00:20.2]} 47... Rf3 {[%clk 0:00:40.7]} 48. e4 {[%clk 0:00:20.9]} 48... Rc3
{[%clk 0:00:27.1]} 49. e5 {[%clk 0:00:21.8]} 49... dxe5 {[%clk 0:00:24.8]} 50.
Bf5 {[%clk 0:00:22.2]} 50... e4 {[%clk 0:00:25.7]} 51. Qe2 {[%clk 0:00:22.6]}
51... Bd4+ {[%clk 0:00:24.9]} 52. Kh1 {[%clk 0:00:24]} 52... Rc1+ {[%clk
0:00:21.4]} 53. Kg2 {[%clk 0:00:24.7]} 53... Rg1+ {[%clk 0:00:21.5]} 54. Kh2
{[%clk 0:00:22.9]} 54... Nf3+ {[%clk 0:00:22.7]} 55. Kh3 {[%clk 0:00:23.3]}
55... Be5 {[%clk 0:00:20.8]} 56. Qf2 {[%clk 0:00:13.6]} 56... Rg3+ {[%clk
0:00:15.2]} 57. Qxg3+ {[%clk 0:00:14.7]} 57... Bxg3 {[%clk 0:00:17.1]} 58. Kxg3
{[%clk 0:00:16.5]} 58... Nd2 {[%clk 0:00:18.9]} 59. Kf4 {[%clk 0:00:16.1]} 59...
Kf6 {[%clk 0:00:17.7]} 60. Bxe4 {[%clk 0:00:14.6]} 60... Nxe4 {[%clk 0:00:17.8]}
61. Kxe4 {[%clk 0:00:16.5]} 61... Kg5 {[%clk 0:00:19]} 62. Ke5 {[%clk
0:00:18.1]} 62... Kg6 {[%clk 0:00:10]} 63. d6 {[%clk 0:00:19.3]} 63... f6+
{[%clk 0:00:10]} 64. Ke6 {[%clk 0:00:20.6]} 64... exd6 {[%clk 0:00:11.2]} 65.
Kxd6 {[%clk 0:00:22.5]} 65... f5 {[%clk 0:00:13.1]} 66. Kxc5 {[%clk 0:00:24.4]}
66... f4 {[%clk 0:00:13.9]} 67. Kd4 {[%clk 0:00:25.7]} 67... Kf5 {[%clk
0:00:15.1]} 68. c5 {[%clk 0:00:24.9]} 68... f3 {[%clk 0:00:11.2]} 69. Ke3 {[%clk
0:00:25.1]} 69... Ke5 {[%clk 0:00:11.3]} 70. Kxf3 {[%clk 0:00:26.3]} 70... Kd5
{[%clk 0:00:12.7]} 71. c6 {[%clk 0:00:26.5]} 71... Kxc6 {[%clk 0:00:13.3]}
1/2-1/2

[Event "*** Titled Tuesday Blitz"]
[Site "Chess.com"]
[Date "2019.08.06"]
[Round "2"]
[White "Lion_DL"]
[Black "playablecharacter"]
[Result "1-0"]
[WhiteElo "2342"]
[BlackElo "2223"]
[TimeControl "180+2"]
[EndTime "13:25:02 PDT"]
[Termination "Lion_DL won by resignation"]

1. e4 {[%clk 0:02:47.4]} 1... c6 {[%clk 0:03:00.7]} 2. d3 {[%clk 0:02:46.8]}
2... d5 {[%clk 0:03:01.7]} 3. Nd2 {[%clk 0:02:48.4]} 3... Nf6 {[%clk 0:03:02.1]}
4. Ngf3 {[%clk 0:02:48.9]} 4... Bg4 {[%clk 0:03:02.3]} 5. h3 {[%clk 0:02:47.8]}
5... Bh5 {[%clk 0:03:02.6]} 6. g4 {[%clk 0:02:47.5]} 6... Bg6 {[%clk 0:03:03.4]}
7. Qe2 {[%clk 0:02:47.9]} 7... e6 {[%clk 0:03:02.6]} 8. Bg2 {[%clk 0:02:48.3]}
8... b5 {[%clk 0:02:57.9]} 9. exd5 {[%clk 0:02:39.7]} 9... cxd5 {[%clk
0:02:57.4]} 10. Ne5 {[%clk 0:02:39.9]} 10... Nbd7 {[%clk 0:02:52.1]} 11. Ndf3
{[%clk 0:02:36.3]} 11... Bd6 {[%clk 0:02:42.2]} 12. O-O {[%clk 0:02:29.5]} 12...
O-O {[%clk 0:02:35.9]} 13. Bg5 {[%clk 0:02:08.1]} 13... Qc7 {[%clk 0:02:23]} 14.
Nxd7 {[%clk 0:01:52.5]} 14... Nxd7 {[%clk 0:02:21.9]} 15. Rac1 {[%clk
0:01:32.8]} 15... Rac8 {[%clk 0:02:17]} 16. Nh4 {[%clk 0:01:20.2]} 16... a5
{[%clk 0:01:52.9]} 17. Rfe1 {[%clk 0:01:19.4]} 17... a4 {[%clk 0:01:51.1]} 18.
Nxg6 {[%clk 0:01:07.1]} 18... hxg6 {[%clk 0:01:51.2]} 19. h4 {[%clk 0:01:06.5]}
19... Bh2+ {[%clk 0:01:50.6]} 20. Kh1 {[%clk 0:01:04.8]} 20... Bf4 {[%clk
0:01:51.9]} 21. Bxf4 {[%clk 0:01:01]} 21... Qxf4 {[%clk 0:01:53.8]} 22. Qf3
{[%clk 0:01:01.4]} 22... Qxf3 {[%clk 0:01:47.4]} 23. Bxf3 {[%clk 0:01:03.3]}
23... Rc5 {[%clk 0:01:17]} 24. d4 {[%clk 0:00:57.7]} 24... Rc7 {[%clk
0:01:11.6]} 25. a3 {[%clk 0:00:57.2]} 25... Nb6 {[%clk 0:01:04.7]} 26. Be2
{[%clk 0:00:54.4]} 26... Nc4 {[%clk 0:01:04.6]} 27. Bxc4 {[%clk 0:00:55.4]}
27... bxc4 {[%clk 0:01:04.8]} 28. c3 {[%clk 0:00:49]} 28... Rb8 {[%clk 0:01:00]}
29. Rc2 {[%clk 0:00:49.9]} 29... Rb6 {[%clk 0:00:55.2]} 30. Kg2 {[%clk
0:00:46.9]} 30... f6 {[%clk 0:00:51.9]} 31. f4 {[%clk 0:00:46.7]} 31... Kf7
{[%clk 0:00:52.6]} 32. Kf3 {[%clk 0:00:47.5]} 32... Rc8 {[%clk 0:00:51.3]} 33.
Ree2 {[%clk 0:00:47.7]} 33... Rcb8 {[%clk 0:00:52]} 34. Kg3 {[%clk 0:00:47]}
34... Rh8 {[%clk 0:00:52.2]} 35. Rcd2 {[%clk 0:00:46.5]} 35... Rb7 {[%clk
0:00:49.6]} 36. Rc2 {[%clk 0:00:45.9]} 36... Re8 {[%clk 0:00:38.8]} 37. Rcd2
{[%clk 0:00:45.4]} 37... Rbe7 {[%clk 0:00:37.9]} 38. Kf3 {[%clk 0:00:43.8]}
38... Rb7 {[%clk 0:00:38.9]} 39. Kg3 {[%clk 0:00:44.8]} 39... Rb6 {[%clk
0:00:40.6]} 40. Kf3 {[%clk 0:00:44.8]} 40... Rc6 {[%clk 0:00:42.2]} 41. Kg3
{[%clk 0:00:45.7]} 41... Ra6 {[%clk 0:00:43.9]} 42. Kf3 {[%clk 0:00:46.7]} 42...
Ra5 {[%clk 0:00:45.6]} 43. Kg3 {[%clk 0:00:47.7]} 43... Rb5 {[%clk 0:00:47.3]}
44. Kf3 {[%clk 0:00:48.7]} 44... Rb3 {[%clk 0:00:49.2]} 45. Kg3 {[%clk
0:00:49.6]} 45... Rbb8 {[%clk 0:00:50.9]} 46. Kf3 {[%clk 0:00:50.9]} 46... Rbd8
{[%clk 0:00:52.5]} 47. Kg3 {[%clk 0:00:52]} 47... Rd7 {[%clk 0:00:53.7]} 48. Kf3
{[%clk 0:00:53]} 48... Ke7 {[%clk 0:00:52.8]} 49. Kg3 {[%clk 0:00:38.9]} 49...
Kd6 {[%clk 0:00:53.2]} 50. Kf3 {[%clk 0:00:38.5]} 50... Rde7 {[%clk 0:00:52.9]}
51. Kf2 {[%clk 0:00:36.9]} 51... e5 {[%clk 0:00:28.6]} 52. dxe5+ {[%clk
0:00:32.6]} 52... fxe5 {[%clk 0:00:30.5]} 53. fxe5+ {[%clk 0:00:25.2]} 53...
Rxe5 {[%clk 0:00:32.4]} 54. Rxe5 {[%clk 0:00:24.1]} 54... Rxe5 {[%clk
0:00:34.3]} 55. Rd4 {[%clk 0:00:21]} 55... Re4 {[%clk 0:00:30.8]} 56. Kf3 {[%clk
0:00:16.6]} 56... Re1 {[%clk 0:00:25]} 57. Rd2 {[%clk 0:00:17]} 57... Rf1+
{[%clk 0:00:25.6]} 58. Kg3 {[%clk 0:00:18.2]} 58... Re1 {[%clk 0:00:24.2]} 59.
Kf4 {[%clk 0:00:18.9]} 59... Re4+ {[%clk 0:00:22.1]} 60. Kg5 {[%clk 0:00:20.1]}
60... Ke5 {[%clk 0:00:23.8]} 61. Rg2 {[%clk 0:00:18.5]} 61... d4 {[%clk
0:00:13]} 62. cxd4+ {[%clk 0:00:18.9]} 62... Kxd4 {[%clk 0:00:14.9]} 63. Kxg6
{[%clk 0:00:20.5]} 63... Re7 {[%clk 0:00:16.2]} 64. h5 {[%clk 0:00:21.1]} 64...
Kd3 {[%clk 0:00:17.1]} 65. g5 {[%clk 0:00:21.9]} 65... c3 {[%clk 0:00:13.3]} 66.
Rg3+ {[%clk 0:00:22.6]} 66... Kd4 {[%clk 0:00:11.5]} 67. Rxc3 {[%clk 0:00:21.6]}
1-0

[Event "*** Titled Tuesday Blitz"]
[Site "Chess.com"]
[Date "2019.08.06"]
[Round "2"]
[White "Jospem"]
[Black "Thee-Chessboy"]
[Result "1-0"]
[WhiteElo "2910"]
[BlackElo "2397"]
[TimeControl "180+2"]
[EndTime "13:25:04 PDT"]
[Termination "Jospem won by resignation"]

1. a3 {[%clk 0:03:01.9]} 1... g6 {[%clk 0:02:58.9]} 2. g3 {[%clk 0:02:43.8]}
2... Bg7 {[%clk 0:03:00]} 3. Bg2 {[%clk 0:02:45.7]} 3... Nf6 {[%clk 0:03:01.2]}
4. d3 {[%clk 0:02:47.6]} 4... O-O {[%clk 0:03:02.4]} 5. Nd2 {[%clk 0:02:49.5]}
5... d5 {[%clk 0:03:02.4]} 6. Ngf3 {[%clk 0:02:51.4]} 6... c5 {[%clk 0:03:03.2]}
7. O-O {[%clk 0:02:53.3]} 7... Nc6 {[%clk 0:03:04.5]} 8. e4 {[%clk 0:02:55.2]}
8... dxe4 {[%clk 0:03:05.5]} 9. dxe4 {[%clk 0:02:56.3]} 9... e5 {[%clk
0:03:06.1]} 10. c3 {[%clk 0:02:57.2]} 10... h6 {[%clk 0:03:06.5]} 11. Qe2 {[%clk
0:02:58.4]} 11... Qc7 {[%clk 0:03:02.7]} 12. Nc4 {[%clk 0:02:59.5]} 12... Be6
{[%clk 0:03:03.2]} 13. Nfd2 {[%clk 0:02:59.8]} 13... Rfd8 {[%clk 0:03:00.1]} 14.
a4 {[%clk 0:03:00.6]} 14... Rd7 {[%clk 0:02:57.5]} 15. Ne3 {[%clk 0:03:01.7]}
15... Rad8 {[%clk 0:02:57.6]} 16. Ndc4 {[%clk 0:03:03.2]} 16... b6 {[%clk
0:02:54.1]} 17. b3 {[%clk 0:03:03.2]} 17... a6 {[%clk 0:02:49.9]} 18. Rb1 {[%clk
0:02:54]} 18... b5 {[%clk 0:02:43.7]} 19. axb5 {[%clk 0:02:55]} 19... axb5
{[%clk 0:02:45.6]} 20. Na3 {[%clk 0:02:56.8]} 20... b4 {[%clk 0:02:46.9]} 21.
Nb5 {[%clk 0:02:57.1]} 21... Qb7 {[%clk 0:02:42.5]} 22. c4 {[%clk 0:02:58.4]}
22... Nd4 {[%clk 0:02:37.8]} 23. Nxd4 {[%clk 0:02:59.8]} 23... exd4 {[%clk
0:02:35.3]} 24. Nd5 {[%clk 0:03:00]} 24... Bxd5 {[%clk 0:02:28.2]} 25. cxd5
{[%clk 0:02:54.1]} 25... Re8 {[%clk 0:02:25.7]} 26. Qd3 {[%clk 0:02:44.3]} 26...
Rde7 {[%clk 0:02:19.8]} 27. f3 {[%clk 0:02:24.4]} 27... Qb6 {[%clk 0:02:12.7]}
28. Bd2 {[%clk 0:02:16.9]} 28... Ra7 {[%clk 0:02:12.9]} 29. Rb2 {[%clk
0:02:10.7]} 29... Ra3 {[%clk 0:02:03.3]} 30. f4 {[%clk 0:02:11.6]} 30... Ng4
{[%clk 0:01:52.1]} 31. Rc1 {[%clk 0:02:08.5]} 31... h5 {[%clk 0:01:47.3]} 32. h3
{[%clk 0:02:09.1]} 32... Nh6 {[%clk 0:01:47.8]} 33. Kh2 {[%clk 0:02:07.3]} 33...
Bf8 {[%clk 0:01:42.5]} 34. Bf3 {[%clk 0:01:59.5]} 34... Rea8 {[%clk 0:01:27.5]}
35. Kg2 {[%clk 0:01:54.3]} 35... Ra2 {[%clk 0:01:27.6]} 36. Rcc2 {[%clk
0:01:55.8]} 36... Rxb2 {[%clk 0:01:28.1]} 37. Rxb2 {[%clk 0:01:57.7]} 37... Qa6
{[%clk 0:01:24.2]} 38. Qxa6 {[%clk 0:01:55.3]} 38... Rxa6 {[%clk 0:01:26.1]} 39.
g4 {[%clk 0:01:57.2]} 39... hxg4 {[%clk 0:01:25.6]} 40. hxg4 {[%clk 0:01:59.1]}
40... Kg7 {[%clk 0:01:16.2]} 41. g5 {[%clk 0:01:58.8]} 41... Ng8 {[%clk
0:01:17.6]} 42. e5 {[%clk 0:01:46.1]} 42... Ne7 {[%clk 0:01:17.2]} 43. d6 {[%clk
0:01:47.6]} 43... Nf5 {[%clk 0:01:17.7]} 44. Be4 {[%clk 0:01:42.7]} 44... Ra3
{[%clk 0:01:13.2]} 45. Kf2 {[%clk 0:01:28.4]} 45... Nh4 {[%clk 0:00:51]} 46. Bd5
{[%clk 0:01:06]} 46... Nf5 {[%clk 0:00:40.8]} 47. Rc2 {[%clk 0:01:05.1]} 47...
Ra5 {[%clk 0:00:42]} 48. Ke2 {[%clk 0:00:57.2]} 48... Kg8 {[%clk 0:00:32]} 49.
Kd3 {[%clk 0:00:55.1]} 49... Ng7 {[%clk 0:00:32.9]} 50. Ke4 {[%clk 0:00:32.4]}
50... Ne6 {[%clk 0:00:28.3]} 51. Rc1 {[%clk 0:00:33.3]} 51... Ng7 {[%clk
0:00:22.9]} 52. Rc4 {[%clk 0:00:29.9]} 52... Nf5 {[%clk 0:00:20.7]} 53. Kd3
{[%clk 0:00:27.4]} 53... Ng7 {[%clk 0:00:20.9]} 54. Be1 {[%clk 0:00:25.6]} 54...
Ne6 {[%clk 0:00:21.5]} 55. Ke4 {[%clk 0:00:26.3]} 55... Ng7 {[%clk 0:00:22]} 56.
Rc1 {[%clk 0:00:27.3]} 56... Nf5 {[%clk 0:00:23.2]} 57. Bf2 {[%clk 0:00:28.7]}
57... Ng7 {[%clk 0:00:23.5]} 58. d7 {[%clk 0:00:29.9]} 58... Be7 {[%clk
0:00:24]} 59. Bxd4 {[%clk 0:00:31.1]} 59... Nf5 {[%clk 0:00:23.2]} 60. Bxc5
{[%clk 0:00:28.6]} 60... Bd8 {[%clk 0:00:23.8]} 61. Bxb4 {[%clk 0:00:27.3]}
61... Ng3+ {[%clk 0:00:24.6]} 62. Kf3 {[%clk 0:00:19.1]} 62... Rxd5 {[%clk
0:00:25.4]} 63. Rc8 {[%clk 0:00:18.8]} 63... Rxd7 {[%clk 0:00:26.4]} 64. Kxg3
{[%clk 0:00:17.8]} 64... Kg7 {[%clk 0:00:26.4]} 65. Bd6 {[%clk 0:00:18.7]} 65...
Bb6 {[%clk 0:00:23.9]} 66. Bf8+ {[%clk 0:00:19.8]} 66... Kh7 {[%clk 0:00:23.8]}
67. Bd6 {[%clk 0:00:21]} 67... Rb7 {[%clk 0:00:23.7]} 68. b4 {[%clk 0:00:22]}
68... Bd4 {[%clk 0:00:24.3]} 69. Kf3 {[%clk 0:00:22.8]} 69... Bc3 {[%clk
0:00:25]} 70. Rxc3 {[%clk 0:00:23.2]} 1-0